Cogmind - Beta 16 @@@ ROGUE MODE // 2025.11.30 @ 00:27:07 Player: Azktor Result: Destroyed by D-53 Grenadier with Mini Grenade Launcher Performance ------------- Evolutions (0) 0 Regions Visited (2) 400 Robots Destroyed (8) 40 Value Destroyed (77) 77 Prototype IDs (0) 0 Alien Tech Used (0) 0 Bonus (0) 0 TOTAL SCORE: 517 Bonus ------- None Cogmind --------- Core Integrity 0/250 Matter 300/300 Energy 100/100 System Corruption 0% Temperature Cool (0) Movement Core (700) Ox13 Location -10/Mines Parts ------- > --- POWER (1) -------- (None) > --- PROPULSION (2) --- (None) > --- UTILITY (2) ------ High-capacity Storage Unit > --- WEAPON (2) ------- (None) > --- INVENTORY (20) --- Light Ion Engine Compact Wheel Compact Wheel Small Storage Unit Improved Terrain Scanner Small Laser Mining Laser Hammer Peak State ------------ > --- POWER ------------ Ion Engine > --- PROPULSION ------- Wheel Wheel > --- UTILITY ---------- High-capacity Storage Unit Seismic Detector > --- WEAPON ----------- Medium Laser Small Laser > --- INVENTORY -------- Ion Engine Compact Wheel Compact Wheel Small Storage Unit Improved Terrain Scanner Small Laser Mining Laser Hammer [Rating: 8] Favorites ----------- Power Ion Engine Engine Ion Engine Propulsion Wheel Wheel Wheel Utility High-capacity Storage Unit Device Seismic Detector Storage High-capacity Storage Unit Weapon Small Laser Energy Gun Small Laser Build | -11 -10 -10 ------- Run | Yrd Mat Min Slots Evolved . | . . . Power . | . . . Propulsion . | . . . Utility . | . . . Weapon . | . . . Parts Attached 12 | 8 1 3 Power 2 | 1 . 1 Engine 2 | 1 . 1 Core . | . . . Reactor . | . . . Propulsion 4 | 3 . 1 Treads . | . . . Leg . | . . . Wheel 4 | 3 . 1 Hover . | . . . Flight . | . . . Utility 4 | 2 1 1 Device 2 | 1 . 1 Storage 2 | 1 1 . Processor . | . . . Hackware . | . . . Protection . | . . . Artifact . | . . . Weapon 2 | 2 . . Energy Gun 2 | 2 . . Energy Cannon . | . . . Ballistic Gun . | . . . Ballistic Cannon . | . . . Launcher . | . . . Special Weapon . | . . . Impact Weapon . | . . . Slashing Weapon . | . . . Piercing Weapon . | . . . Special Melee Weapon . | . . . Unidentified Prototypes . | . . . Parts Lost 8 | . . 8 Power 1 | . . 1 Propulsion 3 | . . 3 Utility 2 | . . 2 Weapon 2 | . . 2 Highest Loss Streak 6 | . . 6 To Critical Strikes . | . . . Average Backups 6 | 3 6 8 Power . | . 1 1 Propulsion 1 | 1 2 2 Utility 1 | . 1 2 Weapon 2 | . 1 3 Tool/Special . | . . . Unused Backups 7 | 1 . 6 Power 1 | . . 1 Propulsion 2 | 1 . 1 Utility 1 | . . 1 Weapon 3 | . . 3 Tool/Special . | . . . Average Slot Usage (%) 96 | . 100 95 Engine 14 | . 14 14 Wheel 26 | . 28 26 Device 12 | . 14 11 Storage 14 | . 14 14 Energy Gun 27 | . 28 27 Peak Build Rating 8 | 7 8 8 Average Rating 6 | 5 7 7 On Entrance 5 | . 7 8 Avg Prop Armor Cover (%) 9 | 9 . . Naked Turns . | . . . Heaviest Build 49 | 14 49 49 Greatest Support 26 | 26 20 20 Greatest Overweight (x) 13 | 3 2 13 Average Overweight (x) 1 | . . 2 Largest Inventory Capacity 20 | 8 20 20 Average Capacity 14 | 7 11 20 Most Carried 8 | 6 8 8 Average Carried 6 | 3 6 7 Final Capacity 20 | 8 20 20 Final Carried 8 | 5 8 8 Class Distribution -------------------- 100% | Mutant Dominant Class ---------------- Mutant | -10/Materials Mutant | -10/Mines Resources | -11 -10 -10 ----------- Run | Yrd Mat Min Matter Collected 330 | 280 . 50 Remotely . | . . . Salvage Created 294 | 193 . 101 Parts 19 | 14 . 5 Haulers Intercepted . | . . . Recyclers Shooed . | . . . Parts Field Recycled . | . . . Retrieved Matter . | . . . Parts Self-Destructed . | . . . Prevented . | . . . Parts Restored . | . . . Kills | -11 -10 -10 ------- Run | Yrd Mat Min Combat Hostiles Destroyed 3 | . . 3 Guns 3 | . . 3 Classes Destroyed 5 | 3 . 2 Worker 3 | 2 . 1 Tunneler 3 | 3 . . Recycler 1 | 1 . . Grunt 1 | . . 1 Assembled 2 | . . 2 Best Kill Streak 3 | 3 . 1 Combat Bots Only 1 | . . 1 Max Kills in Single Turn 1 | 1 . 1 Gunslinging . | . . . Exploded . | . . . Melee . | . . . Uniques/NPCs Destroyed . | . . . Combat | -11 -10 -10 -------- Run | Yrd Mat Min Hostile Shots Fired 32 | . . 32 Missed 4 | . . 4 Hits 28 | . . 28 Projectile 28 | . . 28 AOE 11 | . . 11 Damage Taken 716 | . . 716 Core 259 | . . 259 Absorbed by Shields . | . . . Core Remaining (%) 100 | 100 . . Volleys Fired 36 | 20 . 16 Largest 2 | 2 . 2 Hottest 90 | 90 . 90 Shots Fired 66 | 35 . 31 Gun 66 | 35 . 31 Cannon . | . . . Launcher . | . . . Special . | . . . Kinetic . | . . . Thermal 66 | 35 . 31 Explosive . | . . . Electromagnetic . | . . . Robot Hit Streak 5 | 3 . 5 Robot Miss Streak 4 | 4 . 4 Penetration Max . | . . . Secondary Targets . | . . . Shots Hit Robots 33 | 15 . 18 Core Hits 15 | 7 . 8 Critical Kills . | . . . Critical Parts Destroyed . | . . . Critical Strikes 2 | 1 . 1 Burn 2 | 1 . 1 Melee Attacks . | . . . Impact . | . . . Slashing . | . . . Piercing . | . . . Sneak Attacks . | . . . Combat Hostiles . | . . . Follow-up Attacks . | . . . Damage Inflicted 392 | 176 . 216 Guns 392 | 176 . 216 Cannons . | . . . Explosions . | . . . Melee . | . . . Ramming . | . . . Kinetic . | . . . Thermal 392 | 176 . 216 Explosive . | . . . Electromagnetic . | . . . Impact . | . . . Slashing . | . . . Piercing . | . . . Highest Corruption . | . . . Average Corruption . | . . . Corruption Purged . | . . . Corruption Blocked . | . . . Overload Shots . | . . . Overflow Damage . | . . . Projectiles . | . . . Explosions . | . . . Melee . | . . . Knockbacks . | . . . Impact . | . . . Kinetic . | . . . Secondary . | . . . Self-Inflicted Damage . | . . . Shots . | . . . Rammed . | . . . Targets Rammed . | . . . Kicked . | . . . Crushed . | . . . Highest Temperature 300 | 110 . 300 Average Temperature 84 | 44 . 120 Received Heat Transfer 27 | . . 27 Siege Activations . | . . . Martial Activations . | . . . Shielding Activations . | . . . Robots Disrupted . | . . . Combat Hostiles . | . . . Robots Corrupted . | . . . Combat Hostiles . | . . . Parts Fried . | . . . Impact Corruptions . | . . . Robots Melted . | . . . Combat Hostiles . | . . . Parts Melted 2 | 1 . 1 Heat Transferred 1177 | 533 . 644 Parts Sabotaged . | . . . Parts Stolen . | . . . Parts Stripped . | . . . Power Chain Reactions . | . . . Alert | -11 -10 -10 ------- Run | Yrd Mat Min Maximum Alert Level . | . . . Low Security (%) 100 | 100 100 100 Level 1 . | . . . Level 2 . | . . . Level 3 . | . . . Level 4 . | . . . Level 5 . | . . . High Security . | . . . Max Security . | . . . Peak Influence 55 | 15 3 55 Initial 3 | . 3 . Average 5 | 2 . 9 Influence Increases 95 | 30 . 65 Destroy 0b10 Robot/C 20 | . . 20 Destroy 0b10 Robot/NC 35 | 30 . 5 Destroy Leader 10 | . . 10 Lose Combat Pursuer 30 | . . 30 Influence Decreases 95 | 25 5 65 Entered New Map 2 | . 2 . Time Decay 78 | 25 3 50 Lost Part 15 | . . 15 Squads Dispatched . | . . . Investigation . | . . . Extermination . | . . . Reinforcement . | . . . Assault . | . . . Garrison . | . . . Intercept . | . . . Searches Triggered . | . . . Construction Impeded . | . . . Haulers Reinforced . | . . . Active Scanning Responses . | . . . Cargo Convoy Interrupts . | . . . Stealth | -11 -10 -10 --------- Run | Yrd Mat Min Distress Signals 1 | . . 1 Communications Jammed . | . . . Distress Signals . | . . . Times Spotted 7 | . . 7 Peak Tracking Total 2 | . . 2 Tactical Retreats 1 | . . 1 Traps | -11 -10 -10 ------- Run | Yrd Mat Min Traps Triggered . | . . . Indirectly . | . . . Trap Hack Attempts . | . . . Triggered . | . . . Disarmed . | . . . Reprogrammed . | . . . Reused . | . . . Traps Extracted . | . . . Installed . | . . . Triggered . | . . . Machines | -11 -10 -10 ---------- Run | Yrd Mat Min Machines Disabled . | . . . Max in Single Turn . | . . . Machines Repaired . | . . . Machines Dismantled . | . . . Machines Sabotaged . | . . . Overloaded Fab Kills . | . . . Hacking | -11 -10 -10 --------- Run | Yrd Mat Min Machines Accessed 3 | . 2 1 Terminals 3 | . 2 1 Fabricators . | . . . Repair Stations . | . . . Recycling Units . | . . . Scanalyzers . | . . . Garrison Access . | . . . Total Hacks 5 | . 4 1 Successful . | . . . Failed 5 | . 4 1 Catastrophic 3 | . 2 1 Database Lockouts . | . . . Manual 3 | . 2 1 Terminals 5 | . 4 1 Fabricators . | . . . Repair Stations . | . . . Recycling Units . | . . . Scanalyzers . | . . . Garrison Access . | . . . Terminal Hacks . | . . . Fabricator Hacks . | . . . Repair Station Hacks . | . . . Recycling Unit Hacks . | . . . Scanalyzer . | . . . Garrison Access Hacks . | . . . Unauthorized Hacks . | . . . Terminals . | . . . Fabricators . | . . . Repair Stations . | . . . Recycling Units . | . . . Scanalyzers . | . . . Garrison Access . | . . . Data Cores Recovered . | . . . Used . | . . . Hacking Detections 3 | . 2 1 Full Trace Events 1 | . 1 . Feedback Events . | . . . Feedback Blocked . | . . . Robot Schematics Acquired . | . . . Robots Built . | . . . Authchips . | . . . Time . | . . . Total Robot Build Rating . | . . . Part Schematics Acquired . | . . . Parts Built . | . . . Authchips . | . . . Time . | . . . Total Part Build Rating . | . . . Part Studies Acquired . | . . . Parts Repaired . | . . . Time . | . . . Parts Recycled . | . . . Recycled Matter . | . . . Retrieved Matter . | . . . Retrieved Components . | . . . Parts Scanalyzed . | . . . Part Schematics Acquired . | . . . Parts Damaged . | . . . Bothacking | -11 -10 -10 ------------ Run | Yrd Mat Min Used RIF Installer . | . . . Robots Hacked . | . . . Non-combat . | . . . Combat . | . . . Robot Hacks Applied . | . . . Relay Couplers Released . | . . . Fabnet Peak Effective % . | . . . Robots Rewired . | . . . Allies Hacked . | . . . Hacks Repelled . | . . . Allies | -11 -10 -10 -------- Run | Yrd Mat Min Total Allies . | . . . Largest Group . | . . . Highest-Rated Group . | . . . Highest-Rated Ally . | . . . Total Orders . | . . . Ally Attacks . | . . . Total Damage . | . . . Kills . | . . . Allies Corrupted . | . . . Allies Melted . | . . . Intel | -11 -10 -10 ------- Run | Yrd Mat Min Active Infowar (turns) 326 | 6 77 243 Structural 75 | . . 75 Seismic 251 | 6 77 168 Robot Analysis Total . | . . . Derelict Logs Recovered . | . . . Drone Launches . | . . . Drone Recoveries . | . . . Exploration | -11 -10 -10 ------------- Run | Yrd Mat Min Turns Passed 547 | 175 77 295 Spaces Moved 391 | 113 85 193 Core 9 | 8 . 1 Treads . | . . . Legs . | . . . Wheels 382 | 105 85 192 Hover . | . . . Flight . | . . . Fastest Speed 50 | 50 80 110 Average Speed 100 | 87 87 114 Slowest Speed 700 | 200 110 700 Overloaded Moves . | . . . Propulsion Burnouts . | . . . Robots Hopped . | . . . Potential Cave-ins . | . . . Cave-ins Triggered . | . . . Exploration Rate (%) 20 | 8 20 34 Regions Visited 2 Branch Regions 1 Pre-discovered Areas . | . . . Known Exits Taken . | . . . Unknown Exits Taken 2 | 1 1 . Scrap Searched . | . . . Spaces Dug . | . . . Terrain Destroyed . | . . . Melee . | . . . Projectile . | . . . AOE . | . . . Terrain Rammed . | . . . Walls Destroyed . | . . . Machines Disabled . | . . . Actions | -11 -10 -10 --------- Run | Yrd Mat Min Total 478 | 152 87 239 Wait 24 | 2 . 22 Move 389 | 112 84 193 Hop . | . . . Pick Up 11 | 8 2 1 Fast Attach 7 | 5 . 2 Attach 5 | 3 . 2 Detach 3 | 1 . 2 Swap 1 | . 1 . Drop 2 | 1 . 1 Fire 36 | 20 . 16 Melee . | . . . Ram . | . . . Kick . | . . . Crush . | . . . Escape Stasis . | . . . Rewire . | . . . Trap . | . . . Miscellaneous . | . . . Route ------- -11/Scrapyard -10/Materials -10/Mines History --------- Turn | Location | Event 26 | -11/Scrapyard | Discovered new exit (range 15) 176 | -11/Scrapyard | Entered Materials 199 | -10/Materials | Discovered new exit (range 16) 253 | -10/Materials | Entered Mines 254 | -10/Mines | Assembled infested the area 309 | -10/Mines | Build established: Mutant 541 | -10/Mines | Core integrity fell below 50% 544 | -10/Mines | Core integrity fell below 20% 548 | -10/Mines | Destroyed by D-53 Grenadier with Mini Grenade Launcher Last Messages --------------- 00532_ K-01 Serf destroyed. 00533_ U-05 Engineer builds a Wall. 00535_ The unstable cave ceiling collapses. 00535_ R-06 Scavenger destroyed. 00536_ Structural Scanner destroyed. 00537_ Med. Laser destroyed. 00537_ U-05 Engineer lays Concrete. 00538_ The unstable cave ceiling collapses. 00538_ U-05 Engineer lays Concrete. 00539_ Wheel destroyed. 00539_ U-05 Engineer lays Concrete. 00540_ The unstable cave ceiling collapses. 00540_ U-05 Engineer lays Concrete. 00541_ The unstable cave ceiling collapses. 00541_ U-05 Engineer lays Concrete. 00542_ U-05 Engineer builds a Wall. 00543_ Ion Engine destroyed. 00543_ Wheel destroyed. 00543_ U-05 Engineer destroyed. 00547_ The unstable cave ceiling collapses. Map ----- +----------------------------------------------------+ | | | | | | | | | | | | | | | | | | | | | ?????????????????????????????????????????????????? | | ?????????????????#######?????????????????????????? | | ????????###??????#########???????????????????????? | | #########T#??????## ####??????????????????????? | | # #??????## #######??????????????????? | | # """ """ #??????## " ######????#####?????????? | | # """ """ #??????### ##????#####?????????? | | # """*""" #???????### ### ###???## ?????????? | | # =%= #?????###### #### ####??## ##?????????? | | ### #######?????###### ##### ####### ##?????????? | | ??#!#???????????## ## # # ###### ###????????? | | ??#%#???????????## ### ## # # # ############ | | ??# #??????????### ### # ########### | | ??# #??????#######*### ## # | | ??# #??????###### %### " """ # | | ??# ######?## # @ d "" """ # | | ??# % #### ### d "" """ # | | ??######=#### ### # # # | | ??????##%% * =### # " """ # | | ??????#####"#%" " """ # | | ????????## " ! # ## # """ # | | ??????####" % ########### # | | ?????###" = # # #####??####### "" % "" # | | ?????##" *%!# # #######???????### "" """ # | | ???#### %! # " ###??????????## "" """ # | | ??## # " ##???????????## # | | ??## ^ " ##???????????##### ##### | | ??## ## # #"""###???????????######## ##### | | ??## ## ### #######??????????????##### ##??? | | ??## ## #### #######?????????????????## ##??? | | ???# ## ########?????????????????????? ##??? | | ???# ## #?#####????????????????????? ##??? | | ??## ##????????????????????????? #??? | | ??# ###????????????????????? ??? | | ??# ##??????????????????? ##? | | ??# ## ???????? ###? | | ??# ???????? ## ####? | | ??# ##???????????? ###### ####?? | | ??## ##????????????? ??###### ###??? | | ???### ##????????????????????### ##???? | +----------------------------------------------------+ Best States ------------- Heat Dissipation 25 Energy Generation 10 Energy Capacity 250 Matter Stores 300 Matter Capacity 300 Sight Range 16 Terrain Scan Density 10 Evasion (%) 44 Item Schematics ----------------- None Robot Schematics ------------------ None Fabricated ------------ Nothing Repaired ---------- Nothing Studied --------- None Alien Tech Used ----------------- None Achievements -------------- None Challenges ------------ None Game ------ Seed TacticalMomentumChainsaw Manual? 0 Play Time 00:09:50 Cumulative 201.1 hours Start 2025.11.30 @ 00:17:58 End 2025.11.30 @ 00:27:07 Sessions 1 Manual Loads 0 Difficulty Rogue Special Mode None Game No. 78 Rogue 15 Adventurer 63 Explorer 0 Win Type - Total 8 Types 4/2/0/2/0/0/0/0/0/0 Lore% 31 Gallery% 58 Achievement% 34 Wizard Run 0 Options --------- Layout 1 ASCII 0 Keyboard 0 Movement Mouse Keybinds 0 Fullscreen 1 Font 24/Smallcaps Map View 50x35 Zoom Use 0% Tactical HUD 1 Map Filters NONE Filters NONE Steam 1 RUN: d00a8159-2caf-402c-b115-4f3b2c54d62b